bitfinex-derivatives/quotes_SOLF0:USTF0_20241025
["timestamp","ask_amount","ask_price","bid_price","bid_amount"]
[1729873237199,13.88972872,172.89,172.81,2.8946]
[1729873237200,2.894,172.85,172.81,2.8946]
[1729873239099,2.8941,172.84,172.81,2.8946]
[1729873239691,2.894,172.85,172.81,2.8946]
[1729873239888,5.3,172.9,172.81,13.88972872]
[1729873240089,2.8939,172.86,172.78,5.3]
[1729873240295,13.88972872,172.88,172.79,13.88972872]
[1729873240694,2.8941,172.84,172.79,13.88972872]
[1729873240891,13.88972872,172.88,172.78,5.3]
[1729873241093,13.88972872,172.88,172.8,2.8947]
[1729873241997,13.88972872,172.88,172.78,5.3]
[1729873242199,2.8938,172.86,172.82,2.8943]
[1729873243595,2.8937,172.87,172.82,2.8943]
[1729873243908,13.88972872,172.86,172.78,5.3]
[1729873244109,2.8944,172.83,172.79,2.8948]
[1729873244290,13.88972872,172.86,172.79,2.8948]
[1729873244490,13.88972872,172.86,172.73,2.3928]
[1729873244491,13.88972872,172.84,172.73,2.3928]
[1729873244691,2.8949,172.8,172.74,5.3]
[1729873244901,13.88972872,172.84,172.74,5.3]
[1729873245104,13.88972872,172.84,172.76,2.8954]
[1729873245295,8.8767,172.85,172.74,5.3]
[1729873245296,2.8952,172.78,172.74,5.3]
[1729873245703,2.8952,172.78,172.74,8.1956]
[1729873245898,2.8952,172.78,172.59,17.36]
[1729873245899,13.88972872,172.75,172.59,5.3]
[1729873246099,13.88972872,172.75,172.68,2.8967]
[1729873246300,13.88972872,172.75,172.64,15.14352872]
[1729873246500,2.8962,172.72,172.65,5.3]
[1729873246806,13.88972872,172.75,172.65,5.3]
[1729873246807,13.88972872,172.75,172.67,2.8968]
[1729873247004,2.8963,172.72,172.67,2.8968]
[1729873247405,13.88972872,172.75,172.67,2.8968]
[1729873248406,5.3,172.76,172.64,6.5538]
[1729873248407,13.88972872,172.73,172.64,6.5538]
[1729873248609,13.88972872,172.7,172.63,6.5017]
[1729873248802,13.88972872,172.7,172.59,16.83172825]
[1729873249004,13.88972872,172.7,172.61,5.3]
[1729873249914,2.8972,172.66,172.62,2.8977]
[1729873250210,13.88972872,172.68,172.61,5.3]
[1729873250607,2.8973,172.66,172.62,2.8978]
[1729873251110,2.8973,172.66,172.6,5.3]
[1729873251111,3.6574,172.77,172.61,13.88972872]
[1729873251305,3.6574,172.77,172.6,5.3]
[1729873251306,19.18972872,172.74,172.63,13.88972872]
[1729873251806,2.8966,172.69,172.63,13.88972872]
[1729873252113,13.88972872,172.72,172.63,13.88972872]
[1729873252307,5.3,172.74,172.63,13.88972872]
[1729873252514,2.8961,172.72,172.68,2.8967]
[1729873253916,2.8963,172.71,172.67,2.8968]
[1729873255320,2.8967,172.69,172.65,8.1972]
[1729873255504,2.8967,172.69,172.65,5.3]
[1729873255707,13.88972872,172.72,172.65,5.3]
[1729873255915,2.8965,172.7,172.66,2.897]
[1729873256417,5.3,172.74,172.65,5.3]
[1729873256619,5.3,172.74,172.66,13.88972872]
[1729873257010,13.88972872,172.76,172.66,13.88972872]
[1729873257617,13.88972872,172.76,172.68,13.88972872]
[1729873258013,2.896,172.73,172.7,2.8963]
[1729873258215,13.88972872,172.74,172.65,5.3]
[1729873258929,2.8961,172.72,172.65,5.3]
[1729873260214,2.8964,172.71,172.68,2.8967]
[1729873260927,13.88972872,172.72,172.65,5.3]
[1729873261619,13.88972872,172.7,172.61,5.3]
[1729873261924,19.18972872,172.72,172.61,5.3]
[1729873262112,13.88972872,172.72,172.62,13.88972872]
[1729873262710,2.8966,172.69,172.66,2.8971]
[1729873264223,13.88972872,172.68,172.5,62.5]
[1729873264520,13.88972872,172.68,172.56,13.88972872]
[1729873264725,2.8972,172.66,172.63,2.8976]
[1729873266127,13.88972872,172.68,172.58,5.3]
[1729873266720,13.88972872,172.68,172.63,2.8976]
[1729873266932,2.4276,172.69,172.59,13.88972872]
[1729873267423,2.8967,172.69,172.66,2.8971]
[1729873267732,2.8967,172.69,172.61,13.88972872]
[1729873268826,13.88972872,172.72,172.61,13.88972872]
[1729873269222,13.88972872,172.72,172.62,2.4581]
[1729873269527,5.3,172.75,172.65,13.88972872]
[1729873269738,13.88972872,172.76,172.65,13.88972872]
[1729873270032,2.8958,172.74,172.71,2.8962]
[1729873271028,1.215,172.77,172.69,13.88972872]
[1729873271331,19.18972872,172.8,172.69,13.88972872]
[1729873271628,2.895,172.79,172.69,13.88972872]
[1729873271925,5.3,172.81,172.71,13.88972872]
[1729873272325,2.8949,172.8,172.76,2.8953]
[1729873272927,13.88972872,172.82,172.76,2.8954]
[1729873273119,13.88972872,172.82,172.73,5.3]
[1729873273520,13.88972872,172.82,172.74,2.8957]
[1729873273521,2.8951,172.78,172.74,2.8957]
[1729873274032,13.88972872,172.75,172.54,31.24972872]
[1729873274225,13.88972872,172.75,172.65,5.3]
[1729873274421,13.88972872,172.75,172.66,2.84951542]
[1729873274622,13.88972872,172.73,172.65,5.3]
[1729873274930,16.78582872,172.73,172.65,5.3]
[1729873275122,13.88972872,172.75,172.65,5.3]
[1729873275322,2.8958,172.74,172.7,2.8963]
[1729873275721,2.8961,172.73,172.65,5.3]
[1729873276329,2.8958,172.74,172.7,2.8963]
[1729873277527,13.88972872,172.73,172.68,2.8968]
[1729873277831,16.38372872,172.73,172.68,2.8968]
[1729873278017,2.8961,172.72,172.68,2.8968]
[1729873278335,1.209,172.79,172.73,2.8958]
[1729873278527,1.209,172.79,172.67,13.88972872]
[1729873278528,1.209,172.79,172.69,19.18972872]
[1729873278723,1.209,172.79,172.7,5.3]
[1729873278925,1.209,172.79,172.75,2.8955]
[1729873279231,4.104,172.79,172.75,2.8955]
[1729873279431,1.209,172.79,172.7,5.3]
[1729873279639,21.74842872,172.82,172.76,4.63]
[1729873280132,2.8948,172.8,172.77,2.8952]
[1729873281335,2.8948,172.8,172.76,7.5253]
[1729873282022,2.8948,172.8,172.77,2.8952]
[1729873282228,2.8946,172.81,172.77,2.8952]
[1729873282920,2.5587,172.82,172.8,2.8947]
[1729873282921,1.2816,172.82,172.8,2.8947]
[1729873283122,4.1841,172.84,172.76,4.63]
[1729873283325,5.3,172.85,172.76,4.63]
[1729873283629,2.894,172.85,172.82,2.8944]
[1729873283929,1.1881,172.87,172.77,22.24426282]
[1729873284628,1.1881,172.87,172.84,2.894]
[1729873284833,1.1881,172.87,172.8,5.3]
[1729873285135,1.1881,172.87,172.78,5.3]
[1729873286228,2.8941,172.85,172.81,2.8945]
[1729873287322,2.8941,172.85,172.78,5.3]
[1729873287323,1.1881,172.87,172.84,2.8941]
[1729873287531,1.1881,172.87,172.78,5.3]
[1729873287942,2.8938,172.86,172.83,2.8942]
[1729873288533,1.1881,172.87,172.78,5.3]
[1729873289234,2.8942,172.84,172.78,5.3]
[1729873289934,2.8942,172.84,172.8,2.8947]
[1729873291330,1.1881,172.87,172.78,5.3]
[1729873291534,1.1881,172.87,172.76,9.93]
[1729873291938,2.8944,172.83,172.79,2.8949]
[1729873292539,2.8945,172.82,172.78,2.895]
[1729873292926,2.8945,172.82,172.76,9.93]
[1729873293538,2.8945,172.82,172.79,2.8948]
[1729873294343,2.8946,172.81,172.78,2.8951]
[1729873294643,22.24426282,172.85,172.76,9.93]
[1729873295530,1.1881,172.87,172.76,9.93]
[1729873295731,1.1881,172.87,172.76,32.17426282]
[1729873296143,2.8939,172.86,172.83,2.8943]
[1729873296440,1.1881,172.87,172.76,32.17426282]
[1729873298434,4.0818,172.87,172.84,2.894]
[1729873298630,5.3,172.89,172.76,32.17426282]
[1729873298939,5.3,172.89,172.79,22.24426282]
[1729873299132,24.64946282,172.93,172.79,22.24426282]
[1729873299332,24.64946282,172.93,172.82,22.24426282]
[1729873299333,2.4052,172.93,172.82,22.24426282]
[1729873299542,2.893,172.91,172.87,2.8934]
[1729873299737,2.893,172.91,172.83,5.28]
[1729873300044,2.4052,172.93,172.83,5.28]
[1729873300545,1.2073,172.93,172.83,5.28]
[1729873300742,2.8927,172.93,172.86,2.8937]
[1729873300943,2.8927,172.93,172.83,5.28]
[1729873301437,2.8925,172.94,172.9,2.893]
[1729873301636,1.2285,172.95,172.83,5.28]
[1729873302031,2.8928,172.92,172.89,2.8932]
[1729873302438,2.8928,172.92,172.83,5.28]
[1729873302439,2.4553,172.95,172.83,5.28]
[1729873302945,2.8926,172.93,172.86,2.8937]
[1729873303244,2.8926,172.93,172.83,5.28]
[1729873303540,2.8926,172.93,172.9,2.8931]
[1729873307340,18.0180481,172.95,172.92,2.8928]
[1729873307535,2.8923,172.95,172.87,13.8989481]
[1729873307745,2.8923,172.95,172.88,5.28]
[1729873307947,2.8923,172.95,172.9,2.8931]
[1729873308144,2.8922,172.96,172.88,5.28]
[1729873308642,5.28,172.98,172.9,13.8989481]
[1729873308848,2.8918,172.98,172.9,13.8989481]
[1729873309344,2.8918,172.98,172.94,2.8923]
[1729873310142,13.8989481,172.99,172.89,1.231]
[1729873310346,13.8989481,172.99,172.88,5.28]
[1729873310549,2.8924,172.95,172.91,2.8928]
[1729873310849,13.8989481,172.96,172.88,5.28]
[1729873311243,2.8926,172.94,172.9,2.893]
[1729873311844,13.8989481,172.96,172.88,8.1733]
[1729873311845,2.8929,172.92,172.88,8.1733]
[1729873312054,13.8989481,172.96,172.88,5.28]
[1729873312443,2.8925,172.94,172.91,2.8929]
[1729873312649,13.8989481,172.96,172.88,5.28]
[1729873313041,2.8926,172.94,172.88,5.28]
[1729873313245,13.8989481,172.96,172.88,5.28]
[1729873313647,2.8926,172.94,172.9,2.893]
[1729873313852,13.8989481,172.96,172.9,2.893]
[1729873314657,2.8926,172.93,172.9,2.893]
[1729873316959,13.8989481,172.96,172.88,5.28]
[1729873316960,2.8924,172.94,172.91,2.8928]
[1729873318358,13.8989481,172.96,172.9,2.8931]
[1729873318359,2.8926,172.93,172.9,2.8931]
[1729873319053,13.8989481,172.96,172.9,2.8931]
[1729873319261,2.8927,172.93,172.9,2.8931]
[1729873320453,13.8989481,172.95,172.86,5.28]
[1729873320647,13.8989481,172.9,172.81,13.8989481]
[1729873320958,13.8989481,172.9,172.81,19.1789481]
[1729873321964,2.8936,172.87,172.83,2.8941]
[1729873322254,2.8936,172.87,172.81,5.28]
[1729873322456,2.8936,172.87,172.84,2.8941]
[1729873323062,2.8936,172.87,172.81,19.1789481]
[1729873323362,2.8932,172.9,172.83,13.8989481]
[1729873323864,2.8928,172.92,172.89,2.8931]
[1729873324162,4.62,172.91,172.89,2.8931]
[1729873324356,4.62,172.91,172.86,5.28]
[1729873324562,4.62,172.91,172.9,2.8931]
[1729873329167,4.62,172.91,172.86,5.28]
[1729873331267,13.8989481,172.88,172.75,62.52]
[1729873331570,13.8989481,172.88,172.79,5.28]
[1729873331870,2.8944,172.83,172.77,13.8989481]
[1729873332068,13.8989481,172.86,172.76,1.1856]
[1729873332277,13.8989481,172.86,172.77,5.28]
[1729873333568,2.8944,172.83,172.77,5.28]
[1729873333975,13.8989481,172.86,172.8,2.8946]
[1729873334268,7.8294,172.87,172.77,19.1789481]
[1729873334269,2.894,172.85,172.79,13.8989481]
[1729873334673,13.8989481,172.86,172.77,19.1789481]
[1729873334869,13.8989481,172.86,172.77,5.28]
[1729873335270,2.8942,172.84,172.77,19.1789481]
[1729873335471,2.8942,172.84,172.77,13.8989481]
[1729873335666,21.7283481,172.87,172.76,5.28]
[1729873335667,13.8989481,172.85,172.76,5.28]
[1729873335866,13.8989481,172.81,172.71,13.8989481]
[1729873336072,13.8989481,172.78,172.7,1.2973]
[1729873336275,13.8989481,172.76,172.7,2.8963]
[1729873336573,13.8989481,172.76,172.68,5.28]
[1729873336770,13.8989481,172.76,172.66,13.8989481]
[1729873337768,2.8959,172.73,172.69,2.8965]
[1729873338372,7.8176,172.8,172.6,22.2407662]
[1729873338373,27.5207662,172.74,172.6,22.2407662]
[1729873338573,1.24,172.72,172.61,8.40816804]
[1729873338872,1.24,172.72,172.68,2.8966]
[1729873339074,5.28,172.74,172.63,22.2407662]
[1729873339475,5.28,172.74,172.7,2.8964]
[1729873339678,1.2433,172.76,172.7,2.8964]
[1729873340279,2.8958,172.74,172.7,2.8964]
[1729873341381,1.249,172.79,172.66,27.5207662]
[1729873341689,1.249,172.79,172.69,22.2407662]
[1729873342186,2.8953,172.77,172.73,2.8959]
[1729873343877,4.1925,172.8,172.76,2.8953]
[1729873345883,1.2976,172.8,172.71,5.28]
[1729873346191,24.8146662,172.8,172.71,5.28]
[1729873347082,2.8952,172.78,172.71,5.28]
[1729873347683,2.8952,172.78,172.73,2.8958]
[1729873348084,2.5739,172.8,172.71,5.28]
[1729873348281,2.895,172.79,172.75,2.8955]
[1729873349384,2.5739,172.8,172.75,2.8955]
[1729873349575,2.5739,172.8,172.71,5.28]
[1729873349780,24.8146662,172.8,172.71,5.28]
[1729873349984,24.8146662,172.8,172.69,22.2407662]
[1729873350187,24.8146662,172.8,172.68,5.28]
[1729873350583,2.8956,172.76,172.71,2.8962]
[1729873351484,22.2407662,172.78,172.63,22.2407662]
[1729873351684,23.4830662,172.75,172.64,5.28]
[1729873351887,22.2407662,172.72,172.61,3.12886635]
[1729873352090,2.8968,172.69,172.61,8.40886635]
[1729873352594,1.3019,172.71,172.58,24.6336662]
[1729873352789,2.5934,172.71,172.59,8.40829541]
[1729873353294,2.5934,172.71,172.59,11.31306572]
[1729873354385,2.8971,172.67,172.64,2.8975]
[1729873356990,2.8971,172.67,172.59,8.18477031]
[1729873356991,2.5934,172.71,172.59,8.18477031]
[1729873357194,2.5934,172.71,172.59,2.90477031]
[1729873357195,22.2407662,172.69,172.59,2.90477031]
[1729873357489,2.8973,172.65,172.62,2.8978]
[1729873358690,2.8973,172.65,172.57,8.19768844]
[1729873358691,1.2246,172.68,172.65,2.8972]
[1729873358999,1.2246,172.68,172.57,30.43845464]
[1729873359586,1.2246,172.68,172.57,2.91768844]
[1729873359895,1.2246,172.68,172.55,22.2407662]
[1729873359896,1.2246,172.68,172.56,5.26]
[1729873360097,1.2246,172.68,172.57,2.95292161]
[1729873360298,16.81266327,172.65,172.6,2.898]
[1729873360601,13.91536327,172.65,172.6,2.898]
[1729873360985,2.8977,172.63,172.6,2.898]
[1729873361298,13.91536327,172.65,172.61,2.898]
[1729873361598,2.8972,172.66,172.57,16.86828488]
[1729873361997,2.8972,172.66,172.63,2.8976]
[1729873362297,2.8972,172.66,172.57,16.86828488]
[1729873363689,2.8972,172.66,172.62,2.8977]
[1729873365185,15.13996327,172.68,172.59,13.91536327]
[1729873365396,15.13996327,172.68,172.63,2.8975]
[1729873365397,2.8971,172.67,172.63,2.8975]
[1729873365696,15.13996327,172.68,172.63,2.8975]
[1729873366300,15.13996327,172.68,172.57,18.10748488]
[1729873366487,15.13996327,172.68,172.61,2.8979]
[1729873366693,15.13996327,172.68,172.57,18.10748488]
[1729873367188,13.91536327,172.66,172.57,18.10748488]
[1729873367497,13.91536327,172.66,172.57,8.21292161]
[1729873368203,2.8977,172.63,172.6,2.8981]
[1729873368404,2.8977,172.63,172.57,5.26]
[1729873369290,2.8978,172.62,172.57,5.26]
[1729873369496,2.8978,172.62,172.54,16.79066311]
[1729873369705,13.91536327,172.63,172.58,2.8984]
[1729873369902,2.8981,172.61,172.58,2.8984]
[1729873370293,2.8982,172.6,172.57,2.8985]
[1729873370994,2.8979,172.62,172.59,2.8983]
[1729873371197,15.15456327,172.63,172.54,13.91536327]
[1729873371594,2.8979,172.62,172.56,2.8987]
[1729873371895,15.15456327,172.63,172.54,13.91536327]
[1729873372099,13.91536327,172.61,172.54,5.28]
[1729873372403,13.91536327,172.61,172.56,2.8988]
[1729873372903,2.8983,172.59,172.56,2.8988]
[1729873373398,2.8983,172.59,172.54,2.8991]
[1729873373600,2.8983,172.59,172.52,13.91536327]
[1729873373800,2.8982,172.6,172.52,13.91536327]
[1729873374006,16.36306327,172.63,172.52,13.91536327]
[1729873374194,16.36306327,172.63,172.54,13.91536327]
[1729873374696,2.8978,172.62,172.59,2.8983]
[1729873374903,16.36306327,172.63,172.59,2.8983]
[1729873375196,5.28,172.64,172.54,13.91536327]
[1729873375702,5.28,172.64,172.56,13.91536327]
[1729873375903,8.9684,172.68,172.6,13.91536327]
[1729873376098,13.91536327,172.72,172.63,13.91536327]
[1729873376298,5.28,172.71,172.63,13.91536327]
[1729873377108,5.28,172.73,172.63,13.91536327]
[1729873377600,2.8963,172.71,172.63,13.91536327]
[1729873377804,5.28,172.73,172.63,13.91536327]
[1729873378201,22.86696327,172.74,172.65,13.91536327]
[1729873378600,2.8961,172.72,172.68,2.8967]
[1729873378900,22.86696327,172.74,172.65,13.91536327]
[1729873379405,2.896,172.73,172.69,2.8965]
[1729873379601,22.86696327,172.74,172.65,13.91536327]
[1729873380197,2.896,172.73,172.69,2.8966]
[1729873380397,2.896,172.73,172.65,13.91536327]
[1729873381208,2.8964,172.71,172.67,2.8969]
[1729873381805,2.8968,172.68,172.65,2.8973]
[1729873382109,13.91536327,172.71,172.62,5.26]
[1729873382305,13.91536327,172.69,172.6,5.26]
[1729873382501,2.897,172.67,172.6,5.26]
[1729873382811,13.91536327,172.67,172.58,1.3052]
[1729873383012,2.8978,172.63,172.59,2.8982]
[1729873383213,13.91536327,172.65,172.54,20.47736327]
[1729873383510,2.8978,172.62,172.57,2.8986]
[1729873383709,2.8978,172.62,172.54,20.47736327]
[1729873383911,13.91536327,172.65,172.54,20.47736327]
[1729873383912,5.26,172.64,172.54,20.47736327]
[1729873384307,2.8977,172.63,172.59,2.8981]
[1729873384909,5.26,172.64,172.54,20.47736327]
[1729873384910,2.8979,172.62,172.54,20.47736327]
[1729873385612,2.8979,172.62,172.56,2.8987]
[1729873385805,2.8979,172.62,172.54,20.47736327]
[1729873386310,13.91536327,172.62,172.54,6.562]
[1729873387301,19.17536327,172.64,172.54,20.47736327]
[1729873387899,19.17536327,172.64,172.54,13.91536327]
[1729873388102,13.91536327,172.62,172.53,5.28]
[1729873388299,2.8983,172.6,172.56,2.8987]
[1729873389409,13.91536327,172.6,172.56,2.8987]
[1729873389610,2.8984,172.59,172.52,19.17536327]
[1729873390108,13.91536327,172.6,172.56,2.8987]
[1729873390303,16.81356327,172.6,172.56,2.8987]
[1729873390716,2.8983,172.59,172.55,2.8989]
[1729873390903,2.8983,172.59,172.52,19.17536327]
[1729873391102,27.83072654,172.53,172.29,5.8066]
[1729873391309,27.83072654,172.53,172.25,5.26]
[1729873391310,13.91536327,172.44,172.35,1.1933]
[1729873391512,13.91536327,172.42,172.35,1.1933]
[1729873391704,19.17536327,172.42,172.31,1.303]
[1729873392314,13.91536327,172.39,172.31,1.303]
[1729873392512,13.91536327,172.39,172.3,1.2197]
[1729873392903,19.17536327,172.39,172.32,2.9027]
[1729873393106,19.17536327,172.39,172.3,1.2197]
[1729873393617,2.9021,172.37,172.31,2.9028]
[1729873394207,16.81746327,172.37,172.31,2.9028]
[1729873394512,2.9021,172.37,172.31,2.9028]
[1729873394712,2.9024,172.35,172.25,22.31265578]
[1729873395019,27.57265578,172.39,172.26,6.4533]
[1729873395408,27.57265578,172.39,172.28,2.9034]
[1729873395409,2.9025,172.34,172.28,2.9034]
[1729873395607,2.9025,172.34,172.22,27.57265578]
[1729873395608,2.9025,172.34,172.22,30.46813802]
[1729873395808,5.26,172.35,172.3,2.9031]
[1729873396111,5.26,172.35,172.25,22.31265578]
[1729873396314,2.9029,172.32,172.27,2.9036]
[1729873396507,5.26,172.35,172.23,5.26]
[1729873397326,2.9028,172.33,172.27,2.9035]
[1729873397513,5.26,172.35,172.27,2.9035]
[1729873398304,8.1623,172.36,172.31,2.9029]
[1729873398504,22.31265578,172.39,172.25,22.31265578]
[1729873398712,5.26,172.36,172.25,22.31265578]
[1729873399723,8.1622,172.36,172.31,2.9029]
[1729873400224,8.1622,172.36,172.25,22.31265578]
[1729873400714,5.26,172.36,172.25,22.31265578]
[1729873401122,8.1622,172.36,172.25,22.31265578]
[1729873401319,2.9022,172.36,172.25,22.31265578]
[1729873401523,2.9022,172.36,172.31,2.9029]
[1729873401723,22.31265578,172.39,172.25,22.31265578]
[1729873402029,5.26,172.38,172.28,22.31265578]
[1729873402220,5.26,172.39,172.29,5.26]
[1729873403427,22.31265578,172.41,172.29,5.26]
[1729873403627,27.57265578,172.41,172.29,5.26]
[1729873403826,27.57265578,172.41,172.34,2.9024]
[1729873403827,2.9018,172.39,172.34,2.9024]
[1729873404126,27.57265578,172.41,172.34,2.9024]
[1729873405227,2.9019,172.38,172.34,2.9024]
[1729873405420,27.57265578,172.41,172.32,2.9027]
[1729873405618,27.57265578,172.41,172.29,6.4546]
[1729873406126,27.57265578,172.41,172.32,2.9028]
[1729873406514,2.9023,172.36,172.32,2.9028]
[1729873406719,22.31265578,172.39,172.32,2.9028]
[1729873407128,22.31265578,172.36,172.3,2.903]
[1729873407425,22.31265578,172.36,172.24,5.26]
[1729873407426,27.57265578,172.36,172.24,5.26]
[1729873407623,2.9031,172.31,172.23,1.3011]
[1729873407825,22.31265578,172.33,172.23,1.3011]
[1729873408322,2.9032,172.3,172.23,1.3011]
[1729873408526,22.31265578,172.33,172.23,1.3011]
[1729873408922,22.31265578,172.36,172.23,1.3011]
[1729873409133,1.0,172.38,172.25,22.31265578]
[1729873409134,23.31265578,172.38,172.25,22.31265578]
[1729873409326,2.9024,172.35,172.31,2.9029]
[1729873409630,5.26,172.37,172.31,2.9029]
[1729873410220,2.9026,172.34,172.29,2.9033]
[1729873410419,2.9026,172.34,172.26,4.64]
[1729873411530,2.9026,172.34,172.3,2.903]
[1729873411732,2.9027,172.33,172.26,4.64]
[1729873411927,22.31265578,172.33,172.26,4.64]
[1729873412129,5.26,172.32,172.26,4.64]
[1729873412730,2.9033,172.3,172.26,7.5437]
[1729873413136,2.9033,172.3,172.26,4.64]
[1729873413828,2.9034,172.29,172.26,4.64]
[1729873414230,6.5441,172.32,172.26,4.64]
[1729873414639,7.8172,172.32,172.26,4.64]
[1729873414827,9.1133,172.32,172.26,4.64]
[1729873415027,2.9034,172.29,172.26,4.64]
[1729873418124,9.1133,172.32,172.26,4.64]
[1729873418533,9.1133,172.32,172.26,7.5437]
[1729873419222,2.9035,172.29,172.26,4.64]
[1729873419841,2.9035,172.29,172.26,7.5438]
[1729873420338,13.93835342,172.31,172.26,4.64]
[1729873420534,2.9036,172.28,172.26,4.64]
[1729873421533,13.93835342,172.31,172.27,2.9037]
[1729873421733,13.93835342,172.31,172.26,4.64]
[1729873422334,2.9036,172.28,172.26,4.64]
[1729873423137,13.93835342,172.31,172.26,4.64]
[1729873423835,9.1133,172.32,172.27,2.9036]
[1729873423836,4.64,172.3,172.27,2.9036]
[1729873424026,4.64,172.3,172.26,4.64]
[1729873424626,2.9034,172.29,172.26,7.5438]
[1729873425241,4.64,172.3,172.26,4.64]
[1729873425440,4.64,172.3,172.26,18.57835342]
[1729873425640,4.64,172.3,172.28,13.93835342]
[1729873425834,4.64,172.3,172.29,2.9033]
[1729873426537,14.93835342,172.38,172.27,22.31308868]
[1729873426538,1.0,172.38,172.27,22.31308868]
[1729873426740,1.1925,172.45,172.35,22.31308868]
[1729873426950,1.1925,172.45,172.35,27.57308868]
[1729873427846,4.0932,172.45,172.35,27.57308868]
[1729873428234,4.0932,172.45,172.4,2.9014]
[1729873429653,1.1925,172.45,172.4,2.9014]
[1729873429945,1.1925,172.45,172.38,5.26]
[1729873430131,1.2902,172.47,172.38,27.57308868]
[1729873430334,4.1906,172.47,172.38,27.57308868]
[1729873430750,4.1906,172.47,172.42,2.9011]
[1729873431335,1.2767,172.49,172.41,22.31308868]
[1729873431946,2.9003,172.47,172.43,2.9008]
[1729873432149,2.9003,172.47,172.41,22.31308868]
[1729873432346,1.2767,172.49,172.41,22.31308868]
[1729873432742,2.9004,172.47,172.41,22.31308868]
[1729873433450,2.9004,172.47,172.43,2.9009]
[1729873434868,2.9002,172.48,172.44,2.9008]
[1729873435144,1.2767,172.49,172.41,22.31308868]
[1729873435354,1.2237,172.5,172.41,22.31308868]
[1729873435656,2.9,172.49,172.45,2.9006]
[1729873435948,5.26,172.49,172.35,23.56398868]
[1729873436149,22.31308868,172.48,172.38,2.9017]
[1729873436443,5.26,172.49,172.35,5.26]
[1729873436444,22.31308868,172.47,172.35,5.26]
[1729873436842,2.9008,172.44,172.4,2.9014]
[1729873440954,23.53678868,172.5,172.4,5.26]
[1729873441456,2.9005,172.47,172.43,2.9009]
[1729873442449,2.9005,172.46,172.43,2.9009]
[1729873443252,2.9007,172.45,172.41,2.9012]
[1729873444042,2.9007,172.45,172.39,5.26]
[1729873444355,2.9007,172.45,172.42,2.9011]
[1729873444860,23.53678868,172.5,172.42,2.9011]
[1729873445054,2.9006,172.46,172.42,2.9011]
[1729873446055,1.2237,172.5,172.41,22.31308868]
[1729873446656,2.9001,172.49,172.46,2.9005]
[1729873446856,1.2237,172.5,172.41,22.31308868]
[1729873447250,4.1236,172.5,172.47,2.9003]
[1729873447656,1.2237,172.5,172.41,22.31308868]
[1729873448364,1.206,172.53,172.43,22.31308868]
[1729873448660,1.206,172.53,172.44,5.26]
[1729873448866,1.206,172.53,172.48,2.9]
[1729873449049,2.5699,172.55,172.44,5.26]
[1729873449252,2.5699,172.55,172.46,22.31308868]
[1729873450063,2.8992,172.54,172.51,2.8996]
[1729873450364,2.5699,172.55,172.46,22.31308868]
[1729873451265,2.8993,172.53,172.5,2.8997]
[1729873452162,4.1719,172.55,172.52,2.8994]
[1729873452361,2.899,172.55,172.52,2.8994]
[1729873452661,6.4517,172.58,172.52,2.8994]
[1729873454267,2.8991,172.55,172.52,2.8994]
[1729873454878,2.8987,172.57,172.54,2.899]
[1729873455167,2.5102,172.6,172.51,22.31308868]
[1729873456171,2.8998,172.51,172.47,8.1602]
[1729873456469,22.31308868,172.56,172.46,5.26]
[1729873456665,1.261,172.55,172.45,5.26]
[1729873456865,2.9001,172.49,172.45,2.9005]
[1729873457060,27.57308868,172.53,172.4,24.97868868]
[1729873457263,22.31308868,172.5,172.34,62.62]
[1729873457472,22.31308868,172.5,172.36,22.31308868]